bitfinex/quotes_ETHUSD_20250708
["timestamp","ask_amount","ask_price","bid_price","bid_amount"]
[1752009153166,0.7848,2609.0,2608.9,5.27065635]
[1752009161008,4.61768616,2609.0,2608.9,5.27065635]
[1752009162506,0.8025777,2609.0,2608.9,5.27065635]
[1752009164202,0.002,2609.0,2608.9,9.10368942]
[1752009166817,0.002,2609.0,2608.9,10.41913885]
[1752009180847,0.002,2609.0,2608.9,3.83403307]
[1752009181031,0.002,2609.0,2608.9,10.41913885]
[1752009181841,0.002,2609.0,2608.9,12.52150751]
[1752009183352,0.002,2609.0,2608.9,10.41913885]
[1752009188853,0.002,2609.0,2608.9,9.1021759]
[1752009193264,0.002,2609.0,2608.9,14.8981759]
[1752009225202,0.002,2609.0,2608.9,9.1021759]
[1752009225351,0.002,2609.0,2608.9,15.6702759]
[1752009225550,0.002,2609.0,2608.9,18.51165153]
[1752009227150,0.002,2609.0,2608.9,9.8772759]
[1752009227386,0.002,2609.0,2608.9,14.8951759]
[1752009228893,0.002,2609.0,2608.9,3.83403307]
[1752009229063,0.002,2609.0,2608.9,14.8941759]
[1752009232292,0.002,2609.0,2608.9,9.1021759]
[1752009232791,0.002,2609.0,2608.9,14.8941759]
[1752009240201,0.002,2609.0,2608.9,10.38943307]
[1752009240505,0.002,2609.0,2608.9,13.8404143]
[1752009240903,0.002,2609.0,2608.9,10.38943307]
[1752009241096,0.002,2609.0,2608.9,13.8404143]
[1752009245387,0.002,2609.0,2608.9,10.38943307]
[1752009245705,1e-08,2609.0,2608.9,23.83936519]
[1752009246014,1e-08,2609.0,2608.9,20.38943307]
[1752009246888,1e-08,2609.0,2608.9,20.38843307]
[1752009247182,1e-08,2609.0,2608.9,19.46886337]
[1752009247390,1e-08,2609.0,2608.9,22.4869013]
[1752009248902,1e-08,2609.0,2608.9,26.38525706]
[1752009249891,0.1912,2609.7,2609.4,3.8321695]
[1752009250085,0.1912,2609.7,2609.5,18.5222371]
[1752009250317,0.1912,2609.7,2609.6,0.35904976]
[1752009250894,0.1912,2609.7,2609.6,0.35824976]
[1752009253024,0.9444,2609.7,2609.6,0.35824976]
[1752009253229,1.42378113,2609.7,2609.5,11.58]
[1752009253397,0.0177777,2609.6,2609.5,11.58]
[1752009254934,0.0177777,2609.6,2609.5,12.13]
[1752009255292,0.0177777,2609.6,2609.5,22.13]
[1752009257031,0.0177777,2609.6,2609.5,12.1292]
[1752009257329,0.0177777,2609.6,2609.5,15.96135175]
[1752009257820,0.0177777,2609.6,2609.5,12.1292]
[1752009259034,0.0177777,2609.6,2609.5,15.96135175]
[1752009259715,0.0177777,2609.6,2609.5,10.17115175]
[1752009260024,0.50192868,2609.7,2609.6,0.55]
[1752009260954,0.0722802,2610.1,2609.6,4.3820049]
[1752009261234,3.90364888,2610.1,2609.6,4.3820049]
[1752009261411,0.77348915,2610.0,2609.6,0.55]
[1752009261801,4.60491616,2610.0,2609.6,0.55]
[1752009262937,0.8016,2609.9,2609.8,0.55]
[1752009263116,0.8016,2609.9,2609.8,0.90797841]
[1752009266404,0.1912,2609.8,2609.6,0.55]
[1752009266735,0.8016,2609.9,2609.6,0.55]
[1752009266934,1.34947964,2609.9,2609.6,0.55]
[1752009267734,0.1912,2609.7,2609.6,4.38193123]
[1752009269129,0.1912,2609.7,2609.6,10.16993123]
[1752009279849,0.1912,2609.7,2609.6,10.94473123]
[1752009282815,0.2634802,2610.1,2610.0,0.55]
[1752009283818,0.2634802,2610.1,2610.0,5.81475822]
[1752009285470,0.1634802,2610.1,2610.0,5.81475822]
[1752009285919,0.1654802,2610.1,2610.0,5.81475822]
[1752009290061,0.1654802,2610.1,2609.9,0.55]
[1752009290258,0.9941802,2610.1,2609.9,0.55]
[1752009290550,0.8941802,2610.1,2609.9,0.55]
[1752009299833,0.8941802,2610.1,2609.9,5.81475822]
[1752009301163,1.36671476,2610.1,2609.9,5.81475822]
[1752009301466,0.8941802,2610.1,2609.9,5.81475822]
[1752009303161,3.83141762,2610.0,2609.9,0.55]
[1752009303370,3.83141762,2610.0,2609.8,5.786]
[1752009303371,0.1912,2609.9,2609.7,9.09655324]
[1752009305371,0.1912,2609.9,2609.8,0.55]
[1752009306269,0.1912,2609.9,2609.8,4.38171124]
[1752009307264,0.1912,2609.9,2609.8,7.75771]
[1752009307468,0.1912,2609.9,2609.8,19.32771]
[1752009312472,0.1912,2609.9,2609.8,15.49599876]
[1752009312676,0.1912,2609.9,2609.8,15.95171124]
[1752009314476,0.1912,2609.9,2609.8,12.12]
[1752009314677,0.1912,2609.9,2609.6,3.44690411]
[1752009314878,3.83166002,2609.9,2609.6,5.784]
[1752009315183,0.1912,2609.7,2609.6,11.59875822]
[1752009315355,0.1912,2609.7,2609.6,5.81475822]
[1752009316263,0.8168,2609.6,2609.5,0.001]
[1752009316575,1.30077985,2609.6,2609.5,0.001]
[1752009317385,0.8168,2609.6,2609.5,0.001]
[1752009320777,0.772,2610.0,2609.7,0.55]
[1752009321084,0.002,2610.1,2609.9,5.26475822]
[1752009321686,0.002,2610.1,2609.9,9.0963034]
[1752009321984,0.002,2610.1,2609.9,5.26475822]
[1752009322185,0.6578,2610.1,2609.9,5.26475822]
[1752009322949,0.6578,2610.1,2609.8,10.41316884]
[1752009322950,0.1912,2609.9,2609.8,10.41316884]
[1752009323166,0.1912,2609.9,2609.8,10.96316884]
[1752009325268,0.1912,2609.9,2609.8,7.13152518]
[1752009325469,0.1912,2609.9,2609.8,0.55]
[1752009329361,0.8114,2609.8,2609.6,0.55]
[1752009329580,0.1912,2609.7,2609.6,0.55]
[1752009330000,0.1912,2609.7,2609.5,0.001]
[1752009330296,4.69847337,2609.7,2609.5,0.001]
[1752009330670,0.8665975,2609.7,2609.5,0.001]
[1752009332485,4.69846171,2609.7,2609.5,0.001]
[1752009333074,3.8320049,2609.6,2609.5,0.001]
[1752009333268,4.5871049,2609.6,2609.5,0.001]
[1752009333479,5.51566402,2609.6,2609.5,0.001]
[1752009333698,11.29866402,2609.6,2609.5,0.001]
[1752009336393,7.46665912,2609.6,2609.5,0.001]
[1752009336601,4.58921093,2609.0,2608.7,3.44790411]
[1752009336900,6.24192109,2608.9,2608.7,0.001]
[1752009337203,3.83275044,2609.1,2608.7,0.001]
[1752009337204,3.83273943,2609.1,2608.7,0.001]
[1752009337370,4.58919462,2609.0,2608.7,0.551]
[1752009337571,0.7563,2609.0,2608.7,0.001]
[1752009337772,1.03820549,2608.9,2608.7,0.001]
[1752009337970,4.87125834,2608.9,2608.7,0.001]
[1752009338196,1.03820549,2608.9,2608.7,0.001]
[1752009340102,4.87131516,2608.9,2608.7,0.001]
[1752009341204,5.803,2608.8,2608.7,0.001]
[1752009341387,6.94606152,2608.8,2608.7,0.001]
[1752009342010,10.77924152,2608.8,2608.7,0.001]
[1752009342183,6.94606152,2608.8,2608.7,0.001]
[1752009344588,6.94506152,2608.8,2608.7,0.001]
[1752009348318,5.802,2608.8,2608.7,0.001]
[1752009348530,5.804,2608.9,2608.7,0.001]
[1752009355929,0.7563,2609.0,2608.7,3.8342625]
[1752009356130,0.7794,2609.3,2608.9,0.55]
[1752009356304,9.63367029,2609.2,2608.9,0.55]
[1752009356510,10.0,2609.1,2608.9,0.55]
[1752009356703,5.801,2609.0,2608.9,0.55]
[1752009356918,5.801,2609.0,2608.8,6.58152518]
[1752009357129,5.801,2609.0,2608.8,7.13152518]
[1752009357130,0.1912,2608.9,2608.8,7.13152518]
[1752009357430,0.1912,2608.9,2608.8,10.96467281]
[1752009362820,0.1912,2608.9,2608.8,7.13152518]
[1752009363338,0.1912,2608.9,2608.8,10.96470518]
[1752009371646,0.1912,2608.9,2608.8,10.96570518]
[1752009372248,0.1912,2608.9,2608.8,22.56870518]
[1752009374164,0.1912,2608.9,2608.8,15.98718]
[1752009377036,0.1912,2608.9,2608.8,22.56870518]
[1752009379054,0.1912,2608.9,2608.8,24.07411498]
[1752009379548,0.1912,2609.2,2609.1,4.3826762]
[1752009379927,0.1912,2609.2,2609.1,0.55]
[1752009389646,4.84671255,2609.2,2608.9,0.55]
[1752009389868,0.1912,2609.0,2608.9,0.55]
[1752009393777,0.1912,2609.0,2608.8,0.551]
[1752009394799,0.1912,2609.0,2608.8,4.38417405]
[1752009395004,0.1912,2609.0,2608.8,0.551]
[1752009396203,0.1912,2609.0,2608.8,4.38416907]
[1752009399698,0.1912,2609.0,2608.8,0.551]
[1752009399924,0.1912,2609.0,2608.8,4.38411121]
[1752009405113,0.1912,2609.0,2608.8,9.65393169]
[1752009410324,0.1912,2609.0,2608.8,4.38411121]
[1752009410493,0.1912,2609.0,2608.8,9.65393169]
[1752009416026,0.1912,2609.0,2608.9,3.83303307]
[1752009416527,0.1912,2609.0,2608.8,5.82082048]
[1752009417528,0.1912,2609.0,2608.9,3.83303307]
[1752009419336,0.1912,2609.0,2608.8,5.82082048]
[1752009419635,0.1912,2609.0,2608.8,9.65392064]
[1752009425534,0.1912,2609.0,2608.9,4.38303307]
[1752009434068,0.1912,2609.0,2608.9,0.55]
[1752009436052,0.1912,2609.0,2608.9,4.38303307]
[1752009436348,0.1912,2609.0,2608.8,0.551]
[1752009438852,0.7721,2608.9,2608.8,0.001]
[1752009444449,4.60513307,2608.9,2608.8,0.001]
[1752009444648,0.7721,2608.9,2608.8,0.001]
[1752009445571,4.60513307,2608.9,2608.8,0.001]
[1752009452173,10.39413307,2608.9,2608.8,0.001]
[1752009452385,11.86530415,2608.9,2608.8,0.001]
[1752009468676,21.86530415,2608.9,2608.8,0.001]
[1752009471092,21.86530415,2608.9,2608.8,1e-08]
[1752009471298,23.240056,2608.9,2608.8,1e-08]
[1752009471503,13.83318,2608.8,2608.7,1e-08]
[1752009471815,14.63852085,2608.5,2608.4,0.001]
[1752009473745,20.42752085,2608.5,2608.4,0.001]
[1752009476476,13.83376782,2608.4,2608.3,0.001]
[1752009476810,19.8789883,2608.4,2608.3,0.001]
[1752009477011,20.36367237,2608.4,2608.3,0.001]
[1752009479079,15.09385189,2608.4,2608.3,0.001]
[1752009480000,20.88385189,2608.4,2608.3,0.001]
[1752009485418,15.09385189,2608.4,2608.3,0.001]
[1752009485637,20.88385189,2608.4,2608.3,0.001]
[1752009488388,15.09385189,2608.4,2608.3,0.001]
[1752009488595,20.88385189,2608.4,2608.3,0.001]
[1752009498768,0.48468407,2608.4,2608.3,0.001]
[1752009499046,20.10845189,2608.4,2608.3,0.001]
[1752009502428,20.11045189,2608.4,2608.3,0.001]
[1752009503328,10.48668407,2608.4,2608.3,0.001]
[1752009503532,19.62576782,2608.4,2608.3,0.001]
[1752009510162,20.42896782,2608.4,2608.3,0.001]
[1752009512254,21.80485633,2608.4,2608.3,0.001]
[1752009512444,21.80484456,2608.4,2608.3,0.001]
[1752009516675,14.62100881,2608.1,2608.0,0.001]
[1752009516883,13.83420881,2608.1,2608.0,0.001]
[1752009517178,19.62420881,2608.1,2608.0,0.001]
[1752009518046,3.83420881,2608.1,2608.0,0.001]
[1752009518472,9.62520881,2608.1,2608.0,0.001]
[1752009519068,11.24540448,2608.1,2608.0,0.001]
[1752009531575,9.62420881,2608.1,2608.0,0.001]
[1752009532177,3.83420881,2608.1,2608.0,0.001]
[1752009532379,9.62420881,2608.1,2608.0,0.001]
[1752009534470,5.79,2608.1,2608.0,0.001]
[1752009535991,9.62420881,2608.1,2608.0,0.001]
[1752009536766,5.79,2608.1,2608.0,0.001]
[1752009536966,9.62420881,2608.1,2608.0,0.001]
[1752009537774,5.79,2608.1,2608.0,0.001]
[1752009537975,9.62420881,2608.1,2608.0,0.001]
[1752009540903,11.16562466,2608.1,2608.0,0.001]
[1752009542370,9.62420881,2608.1,2608.0,0.001]
[1752009542974,3.83420881,2608.1,2608.0,0.001]
[1752009543191,9.62420881,2608.1,2608.0,0.001]
[1752009544480,1.95585515,2608.3,2608.0,0.001]
[1752009544693,9.62406651,2608.2,2608.0,0.001]
[1752009544871,1.15799217,2608.1,2608.0,0.001]
[1752009545204,4.99220098,2608.1,2608.0,0.001]
[1752009546803,1.15799217,2608.1,2608.0,0.001]
[1752009546983,4.99220098,2608.1,2608.0,0.001]
[1752009559907,10.78220098,2608.1,2608.0,0.001]
[1752009579821,3.83456697,2607.9,2607.7,0.81614]
[1752009580145,5.9802,2607.8,2607.7,0.81614]
[1752009587376,9.81484989,2607.8,2607.7,0.81614]
[1752009588667,5.9802,2607.8,2607.7,0.81614]
[1752009592362,5.9802,2607.8,2607.6,0.551]
[1752009592665,9.81485538,2607.8,2607.6,0.551]
[1752009593541,5.9802,2607.8,2607.6,0.551]
[1752009595733,9.81486284,2607.8,2607.6,0.551]
[1752009596031,5.9802,2607.8,2607.6,0.551]
[1752009597438,9.81486348,2607.8,2607.6,0.551]
[1752009598567,5.9802,2607.8,2607.6,0.551]
[1752009599149,9.81486739,2607.8,2607.6,0.551]
[1752009599941,5.9802,2607.8,2607.6,0.551]
[1752009600263,9.8148657,2607.8,2607.6,0.551]
[1752009600671,3.83479694,2607.7,2607.6,0.001]
[1752009606674,4.8426098,2607.7,2607.6,0.001]
[1752009610678,4.8446098,2607.7,2607.6,0.001]
[1752009611879,1.00981286,2607.7,2607.6,0.001]
[1752009612079,0.002,2607.7,2607.6,0.001]
[1752009615079,3.83679694,2607.7,2607.6,0.001]
[1752009627072,4.59579694,2607.7,2607.6,0.001]
[1752009638193,14.59579694,2607.7,2607.6,0.001]
[1752009638585,15.97084244,2607.7,2607.6,0.001]
[1752009638786,18.93451045,2607.7,2607.6,0.001]
[1752009638987,17.55946495,2607.7,2607.6,0.001]
[1752009649998,17.55946495,2607.7,2607.3,0.001]
[1752009649999,13.83523816,2607.4,2607.3,0.001]
[1752009650205,20.40883816,2607.4,2607.3,0.001]
[1752009664524,13.83523816,2607.4,2607.3,0.001]
[1752009664808,13.83523816,2607.4,2607.3,0.7998]
[1752009664809,19.62323816,2607.4,2607.3,0.7998]
[1752009667557,20.78123033,2607.4,2607.3,0.7998]
[1752009670467,19.62323816,2607.4,2607.3,0.7998]
[1752009672256,19.62323816,2607.4,2607.3,0.001]
[1752009683824,20.44853816,2607.4,2607.3,0.001]
[1752009695222,21.82536854,2607.4,2607.3,0.001]
[1752009695720,22.35499863,2607.4,2607.3,0.001]
[1752009695906,25.67351397,2607.4,2607.3,0.001]
[1752009696998,25.14388388,2607.4,2607.3,0.001]
[1752009697700,25.14388388,2607.4,2607.3,1e-08]
[1752009700801,25.3438756,2607.4,2607.3,1e-08]
[1752009703937,9.30111786,2607.3,2607.2,1e-08]
[1752009704104,12.24429308,2607.3,2607.2,1e-08]
[1752009704528,22.24429308,2607.3,2607.2,1e-08]
[1752009704840,22.24429308,2607.3,2606.9,0.001]
[1752009704841,19.87355922,2607.0,2606.9,0.001]
[1752009705136,25.66055922,2607.0,2606.9,1e-08]
[1752009705836,27.03519938,2607.0,2606.9,1e-08]
[1752009706145,30.35371472,2607.0,2606.9,1e-08]
[1752009707905,30.54627781,2607.0,2606.9,1e-08]
[1752009708305,9.91950067,2606.7,2606.6,1e-08]
[1752009708554,26.29814083,2606.7,2606.6,1e-08]
[1752009709032,26.29814083,2606.7,2606.5,0.001]
[1752009709033,14.80901525,2606.6,2606.5,1e-08]
[1752009709334,15.61216009,2606.6,2606.5,1e-08]
[1752009723210,15.81191532,2606.6,2606.5,1e-08]
[1752009724606,17.1832296,2606.6,2606.5,1e-08]
[1752009726579,3.83725381,2606.1,2605.7,0.0702802]
[1752009726787,10.8297,2606.3,2605.7,0.0702802]
[1752009726788,13.83759306,2605.8,2605.7,0.0702802]
[1752009727012,19.64159306,2605.8,2605.7,0.0702802]
[1752009728213,19.92896074,2605.8,2605.7,0.0702802]
[1752009728428,19.92896074,2605.8,2605.6,0.001]
[1752009728429,13.83774033,2605.7,2605.6,0.001]
[1752009728604,17.15625567,2605.7,2605.6,0.001]
[1752009729722,17.15625567,2605.7,2605.6,1e-08]
[1752009730097,3.83877159,2605.0,2603.4,9.60386462]
[1752009730302,13.83891896,2604.9,2604.1,0.001]
[1752009732436,13.83891896,2604.9,2604.1,3.84100797]
[1752009732641,13.83891896,2604.9,2604.2,3.87827635]
[1752009733204,13.83891896,2604.9,2604.7,1.1179]
[1752009741258,13.84091896,2604.9,2604.7,1.1179]
[1752009747860,13.84091896,2604.9,2604.7,0.5]
[1752009749467,5.812,2604.9,2604.8,0.6189]
[1752009749645,6.0032,2604.9,2604.8,0.6189]
[1752009750551,0.1932,2604.9,2604.8,0.6189]
[1752009750754,6.0042,2604.9,2604.8,4.45796633]
[1752009750984,6.0042,2604.9,2604.8,6.00195748]
[1752009751128,0.1932,2604.9,2604.8,6.00195748]
[1752009751335,5.814,2604.9,2604.8,6.78154814]
[1752009751565,5.814,2604.9,2604.8,6.74315748]
[1752009751943,5.818,2604.9,2604.8,6.74315748]
[1752009752144,0.002,2604.9,2604.8,6.74315748]
[1752009752438,5.818,2604.9,2604.8,6.74315748]
[1752009756968,5.818,2604.9,2604.8,6.78154814]
[1752009757157,0.002,2604.9,2604.8,6.78154814]
[1752009760281,0.002,2604.9,2604.8,18.40554814]
[1752009760464,0.002,2604.9,2604.8,18.36715748]
[1752009775723,0.002,2604.9,2604.8,12.9841]
[1752009776017,0.002,2604.9,2604.8,0.551]
[1752009777411,0.002,2604.9,2604.8,4.39006633]
[1752009777721,0.002,2604.9,2604.8,0.551]
[1752009777925,3.84091896,2604.9,2604.8,0.001]
[1752009778238,4.87509978,2604.9,2604.8,0.001]
[1752009778935,1.03618082,2604.9,2604.8,0.001]
[1752009781198,4.03211896,2604.9,2604.8,0.001]
[1752009782536,0.1932,2604.9,2604.8,0.001]
[1752009782738,4.03211896,2604.9,2604.8,0.001]
[1752009783224,0.1932,2604.9,2604.8,0.001]
[1752009786398,0.1932,2604.9,2604.8,3.84006633]
[1752009788845,0.002,2604.9,2604.8,5.86843077]
[1752009789050,0.002,2604.9,2604.8,5.90682143]
[1752009789746,0.002,2604.9,2604.8,6.71592143]
[1752009802270,0.002,2604.9,2604.8,6.67753077]
[1752009802578,0.002,2604.9,2604.8,6.71592143]
[1752009803262,0.002,2604.9,2604.8,6.67753077]
[1752009806586,0.002,2604.9,2604.8,6.05963077]
[1752009806771,0.002,2604.9,2604.8,4.03126633]
[1752009806970,0.002,2604.9,2604.8,4.06965699]
[1752009807146,0.002,2604.9,2604.8,4.61965699]
[1752009807346,0.002,2604.9,2604.8,4.06965699]
[1752009807546,0.002,2604.9,2604.8,4.61965699]
[1752009807848,0.7882,2604.9,2604.8,0.001]
[1752009808151,4.62711896,2604.9,2604.8,0.001]
[1752009808352,6.05380342,2604.9,2604.8,0.001]
[1752009809484,2.21488446,2604.9,2604.8,0.001]
[1752009809650,6.05380342,2604.9,2604.8,0.001]
[1752009815054,2.21488446,2604.9,2604.8,0.001]
[1752009815452,6.05380342,2604.9,2604.8,0.001]
[1752009820492,11.86080342,2604.9,2604.8,0.001]
[1752009840298,8.02188446,2604.9,2604.8,0.001]
[1752009840907,11.86080342,2604.9,2604.8,5.28774717]
[1752009841410,8.02188446,2604.9,2604.8,5.28774717]
[1752009846318,6.5952,2604.9,2604.8,5.28774717]
[1752009852226,5.809,2604.9,2604.8,5.28774717]
[1752009852425,6.0002,2604.9,2604.8,5.28774717]
[1752009857844,0.1932,2604.9,2604.8,5.28774717]
[1752009858032,5.9892,2604.9,2604.8,5.28774717]
[1752009869663,9.82811896,2604.9,2604.8,0.001]
[1752009870776,5.9892,2604.9,2604.8,0.001]
[1752009872070,9.82811896,2604.9,2604.8,0.001]
[1752009885686,11.27397882,2604.9,2604.8,0.001]
[1752009886253,9.82811896,2604.9,2604.8,0.001]
[1752009900598,0.002,2604.9,2604.8,10.33310416]
[1752009900907,0.002,2604.9,2604.8,10.4859135]
[1752009901058,0.002,2604.9,2604.8,15.19916633]
[1752009901264,0.002,2606.0,2605.4,0.55]
[1752009901564,0.002,2606.0,2605.9,5.28674717]
[1752009901789,7.17479615,2606.0,2605.9,5.28674717]
[1752009902092,5.798,2606.0,2605.9,5.28674717]
[1752009903190,0.002,2606.0,2605.9,5.28674717]
[1752009903395,5.798,2606.0,2605.9,5.28674717]
[1752009904394,5.797,2606.0,2605.9,9.12419296]
[1752009904891,5.797,2606.0,2605.9,3.83744579]
[1752009906896,5.798,2606.0,2605.9,3.83744579]
[1752009907590,5.797,2606.0,2605.9,5.87694161]
[1752009907790,5.797,2606.0,2605.9,12.47896473]
[1752009908791,0.002,2606.0,2605.9,12.47896473]
[1752009913993,0.002,2606.0,2605.9,12.67016473]
[1752009919917,0.002,2606.0,2605.9,8.28271894]
[1752009920126,0.002,2606.0,2605.9,8.09151894]
[1752009920418,0.002,2606.0,2605.9,11.92896473]
[1752009922817,0.002,2606.0,2605.9,6.60202312]
[1752009923912,0.002,2606.0,2605.9,10.43946891]
[1752009924502,0.002,2606.0,2605.9,6.60202312]
[1752009925537,3.83929854,2606.0,2605.6,7.34322312]
[1752009925835,0.1912,2605.9,2605.6,16.27119326]
[1752009926033,0.1912,2605.9,2605.6,18.37964608]
[1752009927157,0.1912,2605.9,2605.6,14.54185481]
[1752009927836,0.1912,2605.9,2605.6,8.74885481]
[1752009928738,4.82301502,2605.9,2605.6,6.60202312]
[1752009930204,10.61601502,2605.9,2605.6,6.60202312]
[1752009935204,3.83765996,2605.8,2605.4,11.18139788]
[1752009936639,3.83765996,2605.8,2605.4,7.34322312]
[1752009937818,3.83765996,2605.8,2605.4,11.18140433]
[1752009939735,3.83765996,2605.8,2605.4,7.34322312]
[1752009939941,3.83765996,2605.8,2605.4,11.18137207]
[1752009940809,3.83765996,2605.8,2605.7,5.28286758]
[1752009946528,3.83765996,2605.8,2605.4,0.55]
[1752009946529,3.83793936,2605.6,2605.4,0.55]
[1752009946734,5.793,2605.5,2605.3,0.55]
[1752009946948,3.83818223,2605.4,2605.3,0.55]
[1752009947147,9.63112506,2605.5,2605.3,0.55]
[1752009947936,9.63112506,2605.5,2605.4,5.28286758]
[1752009948458,9.82232506,2605.5,2605.4,5.28286758]
[1752009953353,3.83822236,2605.4,2605.2,5.28286758]
[1752009953528,5.793,2605.3,2605.2,5.28286758]
[1752009964345,0.1912,2605.4,2605.2,5.28286758]
[1752009964545,5.794,2605.3,2605.2,5.28286758]
[1752009968477,0.1912,2605.4,2605.2,5.28286758]
[1752009968778,5.794,2605.3,2605.2,5.28286758]
[1752009971182,5.794,2605.3,2605.2,9.12134447]
[1752009972185,0.1912,2605.4,2605.3,5.00622955]
[1752009972382,4.61253727,2605.9,2605.4,3.83809874]
[1752009972688,0.1912,2605.7,2605.6,5.28286758]
[1752009973062,5.9842,2605.7,2605.6,5.28286758]
[1752009973268,3.83937904,2606.0,2605.6,5.28286758]
[1752009973269,0.002,2606.0,2605.6,9.1207552]
[1752009973573,0.002,2606.0,2605.9,5.28286758]
[1752009974073,5.795,2606.0,2605.9,5.28286758]
[1752009975867,4.64078379,2605.8,2605.4,5.47406758]
[1752009976055,4.64078379,2605.8,2605.4,5.28286758]
[1752009976056,0.1912,2605.6,2605.4,5.28286758]
[1752009977095,0.1912,2605.6,2605.4,9.12098747]
[1752009977389,0.1912,2605.6,2605.4,9.12100064]
[1752009977594,0.1912,2605.6,2605.4,9.12098379]
[1752009978182,0.1912,2605.6,2605.5,3.83803492]
[1752009978787,5.793,2605.7,2605.5,3.83803492]
[1752009978989,5.9842,2605.7,2605.5,10.44150031]
[1752009985302,5.9842,2605.7,2605.6,4.38788762]
[1752009985496,5.9842,2605.7,2605.6,0.55]
[1752009993900,9.82195928,2605.7,2605.5,6.60346539]
[1752009998028,5.9842,2605.7,2605.5,6.60346539]
[1752009998893,5.9842,2605.7,2605.6,5.28307158]
[1752010000000,9.82194033,2605.7,2605.6,5.28307158]
[1752010002100,5.9842,2605.7,2605.6,5.28307158]
[1752010002303,5.9842,2605.7,2605.4,0.55]
[1752010002619,9.82199935,2605.7,2605.5,5.28307158]
[1752010011010,3.83810679,2605.5,2605.3,5.28307158]
[1752010011208,5.792,2605.4,2605.3,5.28307158]
[1752010015645,9.63018223,2605.4,2605.3,5.28307158]
[1752010015939,5.792,2605.4,2605.3,5.28307158]
[1752010017153,9.63018223,2605.4,2605.3,5.28307158]
[1752010017453,5.792,2605.4,2605.3,5.28307158]
[1752010017744,9.63018223,2605.4,2605.3,5.28307158]
[1752010019148,5.792,2605.4,2605.3,5.28307158]
[1752010029461,5.792,2605.4,2605.3,9.12140113]
[1752010029678,5.792,2605.4,2605.3,5.28307158]
[1752010034480,5.792,2605.4,2605.2,3.83843709]
[1752010034656,5.792,2605.4,2605.3,5.28307158]
[1752010044763,5.791,2605.4,2605.3,5.28307158]
[1752010048475,5.793,2605.4,2605.3,5.28307158]
[1752010051100,0.002,2605.4,2605.3,5.28307158]
[1752010051305,5.793,2605.4,2605.3,5.28307158]
[1752010064221,0.002,2605.4,2605.3,5.28307158]
[1752010064416,5.793,2605.4,2605.3,5.28307158]
[1752010069337,0.002,2605.4,2605.3,5.28307158]
[1752010069534,5.792,2605.4,2605.3,5.28307158]
[1752010075205,5.792,2605.4,2605.2,3.83847447]
[1752010077643,5.792,2605.4,2605.2,0.55]
[1752010077840,5.792,2605.4,2605.3,5.83307158]
[1752010077841,0.002,2605.4,2605.3,5.83307158]
[1752010078021,0.002,2605.4,2605.3,10.48050113]
[1752010085218,0.002,2605.4,2605.3,15.76357271]
[1752010085420,0.002,2605.4,2605.3,10.48050113]
[1752010085654,0.002,2605.4,2605.3,13.93441236]
[1752010085818,0.002,2605.4,2605.3,16.38567462]
[1752010088151,0.002,2605.4,2605.3,21.6687462]
[1752010088354,0.002,2605.4,2605.3,21.66647477]
[1752010089250,0.002,2605.4,2605.3,31.66647477]
[1752010089628,1e-08,2605.4,2605.3,28.21483497]
[1752010090445,1e-08,2605.4,2605.3,32.81498592]
[1752010091151,1e-08,2605.4,2605.3,28.21483497]
[1752010091352,1e-08,2605.4,2605.3,32.90483497]
[1752010091553,0.002,2606.0,2605.3,37.50122778]
[1752010091751,0.002,2606.5,2606.4,4.38670963]
[1752010091959,0.002,2606.5,2606.4,15.4971483]
[1752010092120,0.002,2606.5,2606.4,15.45878121]
[1752010092324,0.002,2606.5,2606.4,20.93305279]
[1752010093054,0.002,2606.5,2606.4,21.55095279]
[1752010093257,0.002,2606.5,2606.4,24.08973103]
[1752010093552,0.002,2606.7,2606.6,14.38641525]
[1752010093753,0.002,2606.7,2606.6,32.14675684]
[1752010094124,0.002,2606.7,2606.6,32.33795684]
[1752010094459,0.7665,2608.4,2608.0,4.38435582]
[1752010094634,0.7665,2608.4,2608.0,21.2444274]
[1752010096562,0.002,2608.4,2608.0,26.52749898]
[1752010096771,0.002,2608.4,2608.0,21.2444274]
[1752010096938,0.002,2608.4,2608.0,22.55091905]
[1752010098029,0.002,2608.4,2608.0,22.84393973]
[1752010098237,0.002,2608.4,2608.0,25.51178244]
[1752010098666,0.002,2608.4,2608.0,35.51178244]
[1752010101575,0.002,2608.4,2608.0,36.12968244]
[1752010104381,0.002,2608.4,2608.0,36.32088244]
[1752010121708,0.002,2608.4,2608.2,4.3840618]
[1752010121882,0.002,2608.4,2608.2,18.23745811]
[1752010122084,0.002,2608.4,2608.2,18.42865811]
[1752010124512,0.002,2608.4,2608.2,20.70642139]
[1752010124814,0.002,2608.4,2608.2,18.42865811]
[1752010125317,0.002,2608.4,2608.2,20.70642139]
[1752010125896,0.002,2608.4,2608.3,14.38391481]
[1752010126094,0.002,2608.4,2608.3,25.72213732]
[1752010127428,0.002,2608.4,2608.3,23.4275378]
[1752010135695,0.002,2608.6,2608.5,4.38362085]
[1752010136027,0.002,2608.6,2608.5,19.48977803]
[1752010136216,0.002,2608.6,2608.5,23.30033431]
[1752010136423,0.002,2608.6,2608.5,23.49153431]
[1752010138327,0.002,2608.8,2608.7,4.38332694]
[1752010138530,0.002,2608.8,2608.7,24.92718461]
[1752010138726,0.002,2608.8,2608.7,25.08005135]
[1752010139102,0.002,2608.8,2608.7,25.85194746]
[1752010139628,0.002,2608.8,2608.7,23.55498628]
[1752010147002,0.002,2608.8,2608.7,20.47761017]
[1752010147308,0.002,2608.8,2608.7,24.31093711]